[Event "*** MasterClass Titled Tuesday Blitz"]
[Site "Chess.com"]
[Date "2017.12.05"]
[Round "1"]
[White "timator"]
[Black "sparcky99"]
[Result "1-0"]
[WhiteElo "2363"]
[BlackElo "1112"]
[TimeControl "180+2"]
[EndTime "14:20:57 PST"]
[Termination "timator won by checkmate"]

1. Nf3 {[%clk 0:00:25.5]} 1... Nc6 {[%clk 0:02:56.8]} 2. g3 {[%clk 0:00:24]}
2... e6 {[%clk 0:02:57.1]} 3. Bg2 {[%clk 0:00:23.2]} 3... b6 {[%clk 0:02:57.2]}
4. O-O {[%clk 0:00:25.1]} 4... Bb7 {[%clk 0:02:57.7]} 5. b3 {[%clk 0:00:27]}
5... Nf6 {[%clk 0:02:57.2]} 6. Bb2 {[%clk 0:00:28.9]} 6... g6 {[%clk 0:02:58]}
7. e3 {[%clk 0:00:30.3]} 7... Bg7 {[%clk 0:02:58.6]} 8. d4 {[%clk 0:00:32.2]}
8... d5 {[%clk 0:02:58]} 9. Nbd2 {[%clk 0:00:34.1]} 9... O-O {[%clk 0:02:57.8]}
10. c4 {[%clk 0:00:36]} 10... Nb4 {[%clk 0:02:55.5]} 11. Qe2 {[%clk 0:00:35.1]}
11... c6 {[%clk 0:02:54.3]} 12. a3 {[%clk 0:00:36]} 12... Na6 {[%clk 0:02:51.5]}
13. Ne5 {[%clk 0:00:37.1]} 13... Ne4 {[%clk 0:02:48.6]} 14. Nxe4 {[%clk
0:00:37.4]} 14... Bxe5 {[%clk 0:02:47.5]} 15. dxe5 {[%clk 0:00:36.8]} 15... b5
{[%clk 0:02:46]} 16. Nd6 {[%clk 0:00:37.3]} 16... Rb8 {[%clk 0:02:40.3]} 17.
cxb5 {[%clk 0:00:33.3]} 17... Nc5 {[%clk 0:02:30.8]} 18. Bd4 {[%clk 0:00:32.9]}
18... cxb5 {[%clk 0:02:22.8]} 19. Bxc5 {[%clk 0:00:22.7]} 19... Qc7 {[%clk
0:02:23.2]} 20. b4 {[%clk 0:00:23.5]} 20... d4 {[%clk 0:02:20.5]} 21. Bxb7
{[%clk 0:00:21.3]} 21... Rxb7 {[%clk 0:02:20.4]} 22. exd4 {[%clk 0:00:22.5]}
22... Rd8 {[%clk 0:02:17.7]} 23. f4 {[%clk 0:00:24.4]} 23... Rxd6 {[%clk
0:02:18.5]} 24. exd6 {[%clk 0:00:25.2]} 24... Qd7 {[%clk 0:02:17.8]} 25. f5
{[%clk 0:00:27.1]} 25... Kh8 {[%clk 0:02:10.2]} 26. Rae1 {[%clk 0:00:29]} 26...
Kg8 {[%clk 0:02:10.7]} 27. Qe5 {[%clk 0:00:30]} 27... Rb8 {[%clk 0:02:08.6]} 28.
h4 {[%clk 0:00:31.4]} 28... Rd8 {[%clk 0:02:09]} 29. h5 {[%clk 0:00:32.5]} 29...
Qxd6 {[%clk 0:02:07.7]} 30. Bxd6 {[%clk 0:00:32.9]} 30... Rxd6 {[%clk
0:02:08.3]} 31. Qxd6 {[%clk 0:00:33.8]} 31... Kg7 {[%clk 0:02:07.9]} 32. Qe5+
{[%clk 0:00:34.4]} 32... f6 {[%clk 0:02:08.4]} 33. Qxe6 {[%clk 0:00:35.2]} 33...
gxf5 {[%clk 0:02:07.9]} 34. Qxf5 {[%clk 0:00:35.9]} 34... h6 {[%clk 0:02:09.1]}
35. Qg6+ {[%clk 0:00:36.2]} 35... Kf8 {[%clk 0:02:09.1]} 36. Re8# {[%clk
0:00:38.1]} 1-0

[Event "*** MasterClass Titled Tuesday Blitz"]
[Site "Chess.com"]
[Date "2017.12.05"]
[Round "1"]
[White "FearNoEvil12"]
[Black "QuintilianoR"]
[Result "0-1"]
[WhiteElo "2044"]
[BlackElo "2514"]
[TimeControl "180+2"]
[EndTime "14:21:00 PST"]
[Termination "QuintilianoR won by resignation"]

1. e4 {[%clk 0:03:00.8]} 1... c5 {[%clk 0:03:00.8]} 2. Nc3 {[%clk 0:03:00.5]}
2... Nc6 {[%clk 0:03:01.2]} 3. f4 {[%clk 0:03:01.9]} 3... g6 {[%clk 0:03:01.3]}
4. Nf3 {[%clk 0:03:03.2]} 4... Bg7 {[%clk 0:03:02.7]} 5. Bc4 {[%clk 0:03:04.6]}
5... e6 {[%clk 0:03:04]} 6. f5 {[%clk 0:03:06]} 6... Nge7 {[%clk 0:03:05.3]} 7.
fxg6 {[%clk 0:03:06.4]} 7... Nxg6 {[%clk 0:03:03.6]} 8. d3 {[%clk 0:03:07.3]}
8... O-O {[%clk 0:03:00.3]} 9. O-O {[%clk 0:03:08.2]} 9... f5 {[%clk 0:03:00.9]}
10. Bg5 {[%clk 0:03:07]} 10... Qc7 {[%clk 0:02:58.1]} 11. Nb5 {[%clk 0:02:55.8]}
11... Qb8 {[%clk 0:02:56.7]} 12. Be3 {[%clk 0:02:52.3]} 12... a6 {[%clk
0:02:56.2]} 13. Nc3 {[%clk 0:02:52.1]} 13... b5 {[%clk 0:02:56.4]} 14. Bb3
{[%clk 0:02:52.8]} 14... Nd4 {[%clk 0:02:46.9]} 15. Ng5 {[%clk 0:02:52.2]} 15...
f4 {[%clk 0:02:31]} 16. Qh5 {[%clk 0:02:51.4]} 16... h6 {[%clk 0:02:20.5]} 17.
Qxg6 {[%clk 0:02:44.7]} 17... hxg5 {[%clk 0:02:20.7]} 18. Bxd4 {[%clk
0:02:34.9]} 18... cxd4 {[%clk 0:02:22.6]} 19. Ne2 {[%clk 0:02:35.3]} 19... Qe5
{[%clk 0:02:22.6]} 20. Rae1 {[%clk 0:02:29.5]} 20... Bb7 {[%clk 0:02:15.1]} 21.
c3 {[%clk 0:02:29.2]} 21... dxc3 {[%clk 0:02:13.5]} 22. bxc3 {[%clk 0:02:29.5]}
22... Rf6 {[%clk 0:02:09.8]} 23. Qh5 {[%clk 0:02:24.6]} 23... Rh6 {[%clk
0:01:54.2]} 24. Qf3 {[%clk 0:02:17]} 24... Kh8 {[%clk 0:01:49.7]} 25. h3 {[%clk
0:02:17.2]} 25... Rf8 {[%clk 0:01:44.6]} 26. Qg4 {[%clk 0:02:10.6]} 26... Rh4
{[%clk 0:01:41.4]} 27. Qf3 {[%clk 0:02:11.1]} 27... Rf6 {[%clk 0:01:41.9]} 28.
Nd4 {[%clk 0:02:02.4]} 28... Rfh6 {[%clk 0:01:36.1]} 29. Bc2 {[%clk 0:02:00.7]}
29... Qc5 {[%clk 0:01:33.3]} 30. Qf2 {[%clk 0:01:49.3]} 30... g4 {[%clk
0:01:18.9]} 31. Qd2 {[%clk 0:01:33.1]} 31... e5 {[%clk 0:01:06.4]} 0-1

[Event "*** MasterClass Titled Tuesday Blitz"]
[Site "Chess.com"]
[Date "2017.12.05"]
[Round "1"]
[White "ImadAK"]
[Black "DiogenesSinopeus"]
[Result "0-1"]
[WhiteElo "1315"]
[BlackElo "2403"]
[TimeControl "180+2"]
[EndTime "14:21:12 PST"]
[Termination "DiogenesSinopeus won by resignation"]

1. d4 {[%clk 0:03:01.9]} 1... Nf6 {[%clk 0:02:58.9]} 2. c4 {[%clk 0:03:03.3]}
2... g6 {[%clk 0:02:54.9]} 3. Nc3 {[%clk 0:03:04.7]} 3... d5 {[%clk 0:02:55.2]}
4. cxd5 {[%clk 0:03:04.5]} 4... Nxd5 {[%clk 0:02:57.1]} 5. e4 {[%clk 0:03:05.1]}
5... Nxc3 {[%clk 0:02:58]} 6. bxc3 {[%clk 0:03:07]} 6... Bg7 {[%clk 0:02:59.3]}
7. Nf3 {[%clk 0:02:54.7]} 7... c5 {[%clk 0:02:57.7]} 8. Bb2 {[%clk 0:02:52.1]}
8... Qa5 {[%clk 0:02:46]} 9. Be2 {[%clk 0:02:47.9]} 9... cxd4 {[%clk 0:02:39.2]}
10. Nxd4 {[%clk 0:02:34.8]} 10... O-O {[%clk 0:02:38.6]} 11. O-O {[%clk
0:02:35]} 11... b6 {[%clk 0:01:42.5]} 12. Bd3 {[%clk 0:02:21.2]} 12... Bb7
{[%clk 0:01:40.3]} 13. Re1 {[%clk 0:02:22.1]} 13... Nd7 {[%clk 0:01:35]} 14. Nf3
{[%clk 0:02:11.9]} 14... Nc5 {[%clk 0:01:31.8]} 15. Bc2 {[%clk 0:02:08.9]} 15...
Rad8 {[%clk 0:01:30.4]} 16. Qe2 {[%clk 0:02:07.1]} 16... Bxc3 {[%clk 0:01:08]}
17. Bxc3 {[%clk 0:02:03.7]} 17... Qxc3 {[%clk 0:01:09.9]} 18. Rac1 {[%clk
0:01:46.2]} 18... Ba6 {[%clk 0:01:07.6]} 19. Qe3 {[%clk 0:01:41.7]} 19... Qxe3
{[%clk 0:00:48.6]} 20. Rxe3 {[%clk 0:01:43.5]} 20... Rc8 {[%clk 0:00:43]} 21.
Ra3 {[%clk 0:01:38.7]} 21... Rfd8 {[%clk 0:00:32.9]} 22. Bb3 {[%clk 0:01:31.1]}
22... Nxb3 {[%clk 0:00:29.2]} 23. axb3 {[%clk 0:01:29.4]} 23... Rxc1+ {[%clk
0:00:29]} 0-1

[Event "*** MasterClass Titled Tuesday Blitz"]
[Site "Chess.com"]
[Date "2017.12.05"]
[Round "1"]
[White "Vamostodorecto"]
[Black "Raiiiiiii"]
[Result "1-0"]
[WhiteElo "2340"]
[BlackElo "861"]
[TimeControl "180+2"]
[EndTime "14:21:17 PST"]
[Termination "Vamostodorecto won by checkmate"]

1. d4 {[%clk 0:03:01.4]} 1... b6 {[%clk 0:02:55.9]} 2. c4 {[%clk 0:03:01.2]}
2... Bb7 {[%clk 0:02:53.2]} 3. Nc3 {[%clk 0:03:01.8]} 3... c6 {[%clk 0:02:47.8]}
4. e4 {[%clk 0:03:02.7]} 4... c5 {[%clk 0:02:45.6]} 5. d5 {[%clk 0:03:03]} 5...
d6 {[%clk 0:02:43.3]} 6. f4 {[%clk 0:03:03.1]} 6... g6 {[%clk 0:02:41.8]} 7. Nf3
{[%clk 0:03:04.4]} 7... f6 {[%clk 0:02:39.7]} 8. h4 {[%clk 0:03:04.7]} 8... e5
{[%clk 0:02:40.4]} 9. h5 {[%clk 0:03:04.2]} 9... Bg7 {[%clk 0:02:35.2]} 10. fxe5
{[%clk 0:03:03.3]} 10... dxe5 {[%clk 0:02:31.1]} 11. hxg6 {[%clk 0:02:58.8]}
11... hxg6 {[%clk 0:02:30]} 12. Rxh8 {[%clk 0:03:00.7]} 12... Bxh8 {[%clk
0:02:30.2]} 13. Nh4 {[%clk 0:03:01.5]} 13... Ne7 {[%clk 0:02:19.5]} 14. d6
{[%clk 0:02:58]} 14... Nec6 {[%clk 0:02:12.7]} 15. Nxg6 {[%clk 0:02:57.7]} 15...
Bg7 {[%clk 0:02:08.8]} 16. Nb5 {[%clk 0:02:54.7]} 16... Na6 {[%clk 0:01:35.3]}
17. Qh5 {[%clk 0:02:52.7]} 17... Kf7 {[%clk 0:01:30]} 18. Nxe5+ {[%clk
0:02:51.2]} 18... Kg8 {[%clk 0:01:26.4]} 19. Qf7+ {[%clk 0:02:48.6]} 19... Kh7
{[%clk 0:01:22.2]} 20. Nxc6 {[%clk 0:02:37]} 20... Bxc6 {[%clk 0:01:20.5]} 21.
Bd3 {[%clk 0:02:38.6]} 21... Qe8 {[%clk 0:00:54.4]} 22. e5+ {[%clk 0:02:19.2]}
22... Kh8 {[%clk 0:00:42.8]} 23. e6 {[%clk 0:02:19.5]} 23... Qxf7 {[%clk
0:00:40.6]} 24. exf7 {[%clk 0:02:21.4]} 24... Rf8 {[%clk 0:00:40.5]} 25. Bg6
{[%clk 0:02:20.4]} 25... f5 {[%clk 0:00:29.9]} 26. Bg5 {[%clk 0:02:18.8]} 26...
Nc7 {[%clk 0:00:20]} 27. Nxc7 {[%clk 0:02:17.7]} 27... Rxf7 {[%clk 0:00:19.8]}
28. Bxf7 {[%clk 0:02:17.3]} 28... Bf6 {[%clk 0:00:19.9]} 29. Bxf6+ {[%clk
0:02:17.5]} 29... Kh7 {[%clk 0:00:19]} 30. Ne6 {[%clk 0:02:19.4]} 30... Bd5
{[%clk 0:00:18.4]} 31. cxd5 {[%clk 0:02:18.8]} 31... Kh6 {[%clk 0:00:17.8]} 32.
Kf2 {[%clk 0:02:20.7]} 32... Kh7 {[%clk 0:00:17.9]} 33. Kg3 {[%clk 0:02:22.6]}
33... Kh6 {[%clk 0:00:18.5]} 34. Kh4 {[%clk 0:02:24.5]} 34... Kh7 {[%clk
0:00:19.1]} 35. Kh5 {[%clk 0:02:26.4]} 35... f4 {[%clk 0:00:17.7]} 36. Nf8#
{[%clk 0:02:26.6]} 1-0

[Event "*** MasterClass Titled Tuesday Blitz"]
[Site "Chess.com"]
[Date "2017.12.05"]
[Round "1"]
[White "GeorgMeier"]
[Black "luisgui16"]
[Result "1-0"]
[WhiteElo "2803"]
[BlackElo "2301"]
[TimeControl "180+2"]
[EndTime "14:21:22 PST"]
[Termination "GeorgMeier won by resignation"]

1. Nf3 {[%clk 0:03:01.9]} 1... Nf6 {[%clk 0:02:59.9]} 2. g3 {[%clk 0:02:57.5]}
2... g6 {[%clk 0:03:00.3]} 3. Bg2 {[%clk 0:02:58.6]} 3... Bg7 {[%clk 0:03:01.2]}
4. O-O {[%clk 0:02:58.9]} 4... O-O {[%clk 0:03:02.5]} 5. d4 {[%clk 0:03:00.3]}
5... d6 {[%clk 0:03:03.7]} 6. b3 {[%clk 0:03:01.6]} 6... Nbd7 {[%clk 0:03:03.6]}
7. Bb2 {[%clk 0:03:03]} 7... c6 {[%clk 0:03:04.6]} 8. Nbd2 {[%clk 0:03:03.6]}
8... Re8 {[%clk 0:03:05.8]} 9. e4 {[%clk 0:03:04.7]} 9... e5 {[%clk 0:02:56]}
10. dxe5 {[%clk 0:03:06.6]} 10... dxe5 {[%clk 0:02:57.7]} 11. Re1 {[%clk
0:03:05.2]} 11... Qc7 {[%clk 0:02:50.9]} 12. Nc4 {[%clk 0:03:03.2]} 12... Nh5
{[%clk 0:02:26.8]} 13. Qd6 {[%clk 0:03:02.5]} 13... Qxd6 {[%clk 0:02:22.2]} 14.
Nxd6 {[%clk 0:03:04.4]} 14... Re7 {[%clk 0:02:22.8]} 15. Bh3 {[%clk 0:03:01.2]}
15... Nb6 {[%clk 0:02:17]} 16. Nxc8 {[%clk 0:03:02.1]} 16... Nxc8 {[%clk
0:02:17.7]} 17. Rad1 {[%clk 0:03:03.6]} 17... Nb6 {[%clk 0:02:14.7]} 18. a4
{[%clk 0:02:59.4]} 18... a5 {[%clk 0:02:05.8]} 19. Ba3 {[%clk 0:03:00.3]} 19...
Ree8 {[%clk 0:02:03.8]} 20. Bc5 {[%clk 0:03:01.3]} 20... Nc8 {[%clk 0:01:59.6]}
21. Bd7 {[%clk 0:02:56.6]} 21... Rd8 {[%clk 0:01:52.6]} 22. Bg4 {[%clk
0:02:57.6]} 22... Re8 {[%clk 0:01:41.2]} 23. Bd7 {[%clk 0:02:51.5]} 23... Rd8
{[%clk 0:01:41]} 24. Bxc6 {[%clk 0:02:46.9]} 24... Rxd1 {[%clk 0:00:56.9]} 25.
Rxd1 {[%clk 0:02:46.5]} 25... bxc6 {[%clk 0:00:49.6]} 26. Rd8+ {[%clk
0:02:46.2]} 26... Bf8 {[%clk 0:00:51]} 27. Rxf8+ {[%clk 0:02:38.6]} 27... Kg7
{[%clk 0:00:50.5]} 28. Nxe5 {[%clk 0:02:40.5]} 28... f6 {[%clk 0:00:47.5]} 29.
Rf7+ {[%clk 0:02:33]} 29... Kg8 {[%clk 0:00:44.7]} 30. Rf8+ {[%clk 0:02:32.1]}
30... Kg7 {[%clk 0:00:45.7]} 31. Nxc6 {[%clk 0:02:29.6]} 31... f5 {[%clk
0:00:25]} 32. e5 {[%clk 0:02:16.7]} 32... f4 {[%clk 0:00:16.2]} 33. g4 {[%clk
0:02:17]} 1-0

[Event "*** MasterClass Titled Tuesday Blitz"]
[Site "Chess.com"]
[Date "2017.12.05"]
[Round "1"]
[White "ENEASZ"]
[Black "DanielJuanGarcia"]
[Result "1-0"]
[WhiteElo "2403"]
[BlackElo "1302"]
[TimeControl "180+2"]
[EndTime "14:21:25 PST"]
[Termination "ENEASZ won by resignation"]

1. Nf3 {[%clk 0:02:47.3]} 1... d5 {[%clk 0:02:54.4]} 2. d4 {[%clk 0:02:31]} 2...
Nf6 {[%clk 0:02:55]} 3. c4 {[%clk 0:02:24.6]} 3... c6 {[%clk 0:02:47.6]} 4. Nbd2
{[%clk 0:02:24.6]} 4... dxc4 {[%clk 0:02:39.1]} 5. Nxc4 {[%clk 0:02:26.1]} 5...
Bg4 {[%clk 0:02:40.6]} 6. Nce5 {[%clk 0:02:25.1]} 6... Bxf3 {[%clk 0:02:36.9]}
7. Nxf3 {[%clk 0:02:27]} 7... c5 {[%clk 0:02:30.3]} 8. e3 {[%clk 0:02:22.9]}
8... cxd4 {[%clk 0:02:30.3]} 9. exd4 {[%clk 0:02:24.2]} 9... e6 {[%clk
0:02:30.4]} 10. Bb5+ {[%clk 0:02:23.6]} 10... Nc6 {[%clk 0:02:28.2]} 11. O-O
{[%clk 0:02:24]} 11... a6 {[%clk 0:02:22.5]} 12. Bxc6+ {[%clk 0:02:23.7]} 12...
bxc6 {[%clk 0:02:23.1]} 13. Bg5 {[%clk 0:02:24.2]} 13... Be7 {[%clk 0:02:23.7]}
14. Rc1 {[%clk 0:02:24.6]} 14... Qd7 {[%clk 0:02:23.9]} 15. Ne5 {[%clk
0:02:24.7]} 15... Qd5 {[%clk 0:02:17.6]} 16. Qa4 {[%clk 0:02:05.3]} 16... O-O
{[%clk 0:02:05.1]} 17. Be3 {[%clk 0:01:59.8]} 17... Bd6 {[%clk 0:01:58.9]} 18.
Qxc6 {[%clk 0:01:49.4]} 18... Bxe5 {[%clk 0:01:42]} 19. Qxd5 {[%clk 0:01:47.5]}
19... Bxh2+ {[%clk 0:01:35.7]} 20. Kxh2 {[%clk 0:01:48.9]} 20... Nxd5 {[%clk
0:01:35.8]} 21. Rc4 {[%clk 0:01:41.9]} 21... Rac8 {[%clk 0:01:31.8]} 22. Rfc1
{[%clk 0:01:41.9]} 22... Rxc4 {[%clk 0:01:24.1]} 23. Rxc4 {[%clk 0:01:43.8]}
23... Nb6 {[%clk 0:01:25]} 24. Rc6 {[%clk 0:01:44.1]} 24... Rb8 {[%clk
0:01:19.5]} 25. Bf4 {[%clk 0:01:45.1]} 25... Rb7 {[%clk 0:01:12.1]} 26. Bc7
{[%clk 0:01:45.3]} 26... Nd5 {[%clk 0:01:10]} 27. Ba5 {[%clk 0:01:46.4]} 27...
Ne7 {[%clk 0:01:06.9]} 28. Rxa6 {[%clk 0:01:44.5]} 28... h6 {[%clk 0:01:05.5]}
29. b4 {[%clk 0:01:37.2]} 29... Nd5 {[%clk 0:01:02.7]} 30. a3 {[%clk 0:01:35]}
30... Nc7 {[%clk 0:00:39.7]} 31. Bxc7 {[%clk 0:01:34.1]} 31... Rxc7 {[%clk
0:00:37.6]} 32. b5 {[%clk 0:01:35]} 1-0

[Event "*** MasterClass Titled Tuesday Blitz"]
[Site "Chess.com"]
[Date "2017.12.05"]
[Round "1"]
[White "MRniceplay"]
[Black "Khamrakulov_Djurabek"]
[Result "0-1"]
[WhiteElo "2257"]
[BlackElo "2652"]
[TimeControl "180+2"]
[EndTime "14:21:44 PST"]
[Termination "Khamrakulov_Djurabek won by resignation"]

1. e4 {[%clk 0:02:54.1]} 1... c6 {[%clk 0:03:00.4]} 2. d4 {[%clk 0:02:51.7]}
2... d5 {[%clk 0:03:00.8]} 3. e5 {[%clk 0:02:52.7]} 3... Bf5 {[%clk 0:03:01.2]}
4. Nf3 {[%clk 0:02:52.5]} 4... e6 {[%clk 0:03:01.8]} 5. Be2 {[%clk 0:02:40.1]}
5... Ne7 {[%clk 0:03:02.2]} 6. O-O {[%clk 0:02:40.9]} 6... h6 {[%clk 0:03:03.1]}
7. Re1 {[%clk 0:02:41.4]} 7... Nd7 {[%clk 0:03:03.6]} 8. Bf1 {[%clk 0:02:41.7]}
8... Qc7 {[%clk 0:03:02.3]} 9. c4 {[%clk 0:02:40.6]} 9... dxc4 {[%clk
0:02:59.7]} 10. Nbd2 {[%clk 0:02:40.7]} 10... b5 {[%clk 0:02:55.4]} 11. a4
{[%clk 0:02:41.3]} 11... Nd5 {[%clk 0:02:50.5]} 12. Ne4 {[%clk 0:02:21]} 12...
Be7 {[%clk 0:02:49.8]} 13. Bd2 {[%clk 0:02:10.6]} 13... O-O {[%clk 0:02:46.6]}
14. b3 {[%clk 0:02:10.3]} 14... c3 {[%clk 0:02:45.3]} 15. Nxc3 {[%clk
0:02:09.7]} 15... Nxc3 {[%clk 0:02:20]} 16. Bxc3 {[%clk 0:02:11.6]} 16... b4
{[%clk 0:02:14.4]} 17. Bb2 {[%clk 0:02:06.1]} 17... Rfd8 {[%clk 0:02:15.2]} 18.
a5 {[%clk 0:01:58.8]} 18... c5 {[%clk 0:02:04.3]} 19. Qc1 {[%clk 0:01:49.1]}
19... Qb7 {[%clk 0:01:53.8]} 20. Qe3 {[%clk 0:01:44.2]} 20... Rac8 {[%clk
0:01:50]} 21. Bc4 {[%clk 0:01:37.5]} 21... Bg4 {[%clk 0:01:44.9]} 22. Nd2 {[%clk
0:01:36.5]} 22... Nf8 {[%clk 0:01:40.7]} 23. Ne4 {[%clk 0:01:34.2]} 23... cxd4
{[%clk 0:01:33.5]} 24. Bxd4 {[%clk 0:01:34.1]} 24... Bf5 {[%clk 0:01:27.8]} 25.
Nf6+ {[%clk 0:01:23]} 25... Kh8 {[%clk 0:01:20]} 26. g4 {[%clk 0:01:21.7]} 26...
Bg6 {[%clk 0:01:20.3]} 27. Nh5 {[%clk 0:01:10.9]} 27... Bxh5 {[%clk 0:01:12]}
28. gxh5 {[%clk 0:01:11]} 28... Nh7 {[%clk 0:01:13]} 29. f4 {[%clk 0:01:06.8]}
29... Rxd4 {[%clk 0:01:13]} 30. Qxd4 {[%clk 0:01:06.9]} 30... Bc5 {[%clk
0:01:13.9]} 31. Rad1 {[%clk 0:01:05.6]} 31... Qc7 {[%clk 0:01:06.9]} 32. a6
{[%clk 0:00:54.5]} 32... Bxd4+ {[%clk 0:01:07.4]} 33. Rxd4 {[%clk 0:00:55]}
33... Qc5 {[%clk 0:01:08.5]} 34. Rd1 {[%clk 0:00:55.1]} 34... Rd8 {[%clk
0:01:09.4]} 0-1

[Event "*** MasterClass Titled Tuesday Blitz"]
[Site "Chess.com"]
[Date "2017.12.05"]
[Round "1"]
[White "MaxLeto"]
[Black "Sulvyfex"]
[Result "1-0"]
[WhiteElo "2418"]
[BlackElo "1331"]
[TimeControl "180+2"]
[EndTime "14:21:57 PST"]
[Termination "MaxLeto won by resignation"]

1. d4 {[%clk 0:02:52]} 1... d5 {[%clk 0:02:55.4]} 2. Bf4 {[%clk 0:02:49]} 2...
c6 {[%clk 0:02:56.4]} 3. e3 {[%clk 0:02:46.2]} 3... Nf6 {[%clk 0:02:57.6]} 4. c4
{[%clk 0:02:44.7]} 4... Bf5 {[%clk 0:02:58.3]} 5. Qb3 {[%clk 0:02:40.4]} 5...
Qb6 {[%clk 0:02:58]} 6. c5 {[%clk 0:02:31.4]} 6... Qxb3 {[%clk 0:02:55.3]} 7.
axb3 {[%clk 0:02:33.3]} 7... a6 {[%clk 0:02:56.8]} 8. b4 {[%clk 0:02:33.3]} 8...
Nbd7 {[%clk 0:02:57.6]} 9. h3 {[%clk 0:02:16.8]} 9... h6 {[%clk 0:02:58.1]} 10.
Nd2 {[%clk 0:02:09.8]} 10... g5 {[%clk 0:02:58.6]} 11. Bh2 {[%clk 0:02:06.8]}
11... Bg7 {[%clk 0:02:59.5]} 12. Nb3 {[%clk 0:01:42.2]} 12... O-O {[%clk
0:02:32.9]} 13. Na5 {[%clk 0:01:31.6]} 13... Ra7 {[%clk 0:02:34]} 14. Nf3 {[%clk
0:01:26.4]} 14... Ne4 {[%clk 0:02:32.1]} 15. Be2 {[%clk 0:01:21.7]} 15... Rc8
{[%clk 0:02:26.4]} 16. O-O {[%clk 0:01:14]} 16... f6 {[%clk 0:02:27.3]} 17. Rfd1
{[%clk 0:01:10.9]} 17... e5 {[%clk 0:02:26.6]} 18. Nd2 {[%clk 0:01:08.9]} 18...
Kf7 {[%clk 0:02:08.9]} 19. Nxe4 {[%clk 0:00:59.9]} 19... Bxe4 {[%clk 0:02:10.8]}
20. f3 {[%clk 0:00:59.6]} 20... Bg6 {[%clk 0:02:11.6]} 21. e4 {[%clk 0:00:55.7]}
21... dxe4 {[%clk 0:02:03.4]} 22. dxe5 {[%clk 0:00:38.4]} 22... Ke6 {[%clk
0:01:51.6]} 23. Rd6+ {[%clk 0:00:28.9]} 23... Ke7 {[%clk 0:01:48.4]} 24. e6
{[%clk 0:00:29]} 24... Ne5 {[%clk 0:01:38.2]} 25. Bxe5 {[%clk 0:00:22.6]} 25...
fxe5 {[%clk 0:01:39.3]} 26. Rad1 {[%clk 0:00:23.4]} 26... Kf6 {[%clk 0:01:37.1]}
27. e7+ {[%clk 0:00:21.9]} 27... Kf7 {[%clk 0:01:35.4]} 28. Bc4+ {[%clk
0:00:22.7]} 28... Ke8 {[%clk 0:01:35.5]} 29. Rxg6 {[%clk 0:00:22.1]} 29... Kxe7
{[%clk 0:01:31.3]} 30. Rxg7+ {[%clk 0:00:22.8]} 30... Kf6 {[%clk 0:01:32.9]} 31.
Rf7+ {[%clk 0:00:21.2]} 31... Kg6 {[%clk 0:01:33.7]} 32. Rd6+ {[%clk 0:00:23.1]}
32... Kh5 {[%clk 0:01:34.5]} 33. g4+ {[%clk 0:00:24.6]} 33... Kh4 {[%clk
0:01:35.6]} 34. Kh2 {[%clk 0:00:26.2]} 34... h5 {[%clk 0:01:36.8]} 35. Rh6
{[%clk 0:00:26.4]} 1-0